bitfinex/quotes_BTCUSD_20240715
["timestamp","ask_amount","ask_price","bid_price","bid_amount"]
[1721051469425,2.89933848,62952.0,62951.0,0.002913]
[1721051469642,2.88633848,62952.0,62951.0,0.002913]
[1721051469787,3.24675206,62952.0,62951.0,0.002913]
[1721051469986,3.10033848,62952.0,62951.0,0.002913]
[1721051470184,3.09954207,62952.0,62951.0,0.002913]
[1721051470386,3.08554207,62952.0,62951.0,0.002913]
[1721051470860,2.89854207,62952.0,62951.0,0.002913]
[1721051471039,3.09854207,62952.0,62951.0,0.002913]
[1721051471210,3.05894364,62952.0,62951.0,0.002913]
[1721051471530,3.24494364,62952.0,62951.0,0.001913]
[1721051471689,3.09554207,62952.0,62951.0,0.001913]
[1721051472357,3.26314207,62952.0,62951.0,0.001913]
[1721051472531,3.25490581,62952.0,62951.0,0.001913]
[1721051472943,3.58560781,62952.0,62951.0,0.001913]
[1721051473153,3.08730581,62952.0,62951.0,0.001913]
[1721051473318,3.03922013,62952.0,62951.0,0.001913]
[1721051473506,3.10152338,62952.0,62951.0,0.001913]
[1721051473710,3.10100385,62952.0,62951.0,0.001913]
[1721051474487,3.41870585,62952.0,62951.0,0.001913]
[1721051474699,3.10100385,62952.0,62951.0,0.001913]
[1721051474951,3.43072176,62952.0,62951.0,0.001913]
[1721051475096,3.74842376,62952.0,62951.0,0.001913]
[1721051475301,3.74842376,62952.0,62951.0,1e-06]
[1721051475504,3.74842376,62952.0,62942.0,0.009163]
[1721051475505,2.59370151,62943.0,62942.0,0.009163]
[1721051475710,3.07401211,62943.0,62942.0,0.009163]
[1721051476118,3.03442216,62943.0,62942.0,0.009163]
[1721051476516,2.87401211,62943.0,62942.0,0.009163]
[1721051476944,3.07401211,62943.0,62942.0,0.009163]
[1721051477303,3.07801211,62943.0,62942.0,0.009163]
[1721051477756,2.87801211,62943.0,62942.0,0.009163]
[1721051478339,2.0734246,62943.0,62942.0,0.009163]
[1721051478543,1.5734246,62943.0,62942.0,0.009163]
[1721051478740,1.2576776,62943.0,62942.0,0.009163]
[1721051478941,0.9318776,62943.0,62942.0,0.009163]
[1721051479458,0.800367,62943.0,62942.0,0.009163]
[1721051479825,1.02702823,62943.0,62942.0,0.009163]
[1721051480028,1.04802823,62943.0,62942.0,0.009163]
[1721051480361,1.04602823,62943.0,62942.0,0.009163]
[1721051480802,1.05002823,62943.0,62942.0,0.009163]
[1721051481011,1.04602823,62943.0,62942.0,0.009163]
[1721051481219,0.25166123,62943.0,62942.0,0.009163]
[1721051481424,0.25166123,62943.0,62942.0,0.944543]
[1721051481425,0.05010374,62943.0,62942.0,0.944543]
[1721051481660,0.05010374,62943.0,62942.0,1.382295]
[1721051481863,0.04834765,62952.0,62951.0,0.61666]
[1721051481864,0.00083,62952.0,62951.0,0.61666]
[1721051481979,0.00083,62952.0,62951.0,0.934367]
[1721051482439,0.04882078,62952.0,62951.0,0.934367]
[1721051482637,0.04881772,62952.0,62951.0,0.61666]
[1721051482785,0.20766872,62952.0,62951.0,0.1401]
[1721051482986,0.20766872,62952.0,62951.0,0.075]
[1721051482987,0.58531123,62952.0,62951.0,0.075]
[1721051483197,0.476583,62948.0,62947.0,0.0603]
[1721051483449,0.59583791,62948.0,62947.0,0.0603]
[1721051483663,0.25436124,62948.0,62947.0,0.0603]
[1721051483912,0.09550024,62948.0,62947.0,0.0603]
[1721051484116,0.52457072,62948.0,62947.0,0.0603]
[1721051484284,0.52457072,62948.0,62943.0,0.0823]
[1721051484285,0.158871,62944.0,62943.0,0.0823]
[1721051484491,0.158871,62944.0,62942.0,0.009163]
[1721051484492,0.158873,62943.0,62942.0,0.009163]
[1721051484690,0.72713085,62943.0,62942.0,0.009163]
[1721051484889,1.49148434,62943.0,62942.0,0.009163]
[1721051485584,1.59967484,62943.0,62942.0,0.009163]
[1721051485768,1.49173424,62943.0,62942.0,0.009163]
[1721051485971,1.360914,62943.0,62942.0,0.009163]
[1721051486179,1.49173466,62943.0,62942.0,0.009163]
[1721051487031,1.49173466,62943.0,62942.0,0.013163]
[1721051487213,1.38474705,62943.0,62942.0,0.013163]
[1721051487592,1.26593466,62943.0,62942.0,0.013163]
[1721051488589,1.38474819,62943.0,62942.0,0.013163]
[1721051488773,1.38456573,62943.0,62942.0,0.013163]
[1721051489903,1.06681873,62943.0,62942.0,0.013163]
[1721051490562,0.74907173,62943.0,62942.0,0.013163]
[1721051490808,0.17815953,62943.0,62942.0,0.313739]
[1721051490976,0.04759241,62943.0,62942.0,0.313739]
[1721051491178,0.04759241,62944.0,62942.0,0.154863]
[1721051491353,0.04759241,62943.0,62942.0,0.154863]
[1721051491705,0.04759241,62943.0,62942.0,0.313739]
[1721051491905,0.20638472,62946.0,62942.0,0.313739]
[1721051492120,0.04751772,62944.0,62942.0,0.154863]
[1721051492320,0.04758675,62943.0,62942.0,0.150863]
[1721051492695,0.07404092,62948.0,62944.0,0.158871]
[1721051492696,0.00276434,62948.0,62944.0,0.158871]
[1721051492895,0.04804561,62947.0,62944.0,0.158871]
[1721051493622,0.04804561,62947.0,62945.0,0.158868]
[1721051494999,0.02576434,62948.0,62945.0,0.158868]
[1721051495205,0.04837022,62947.0,62945.0,0.158868]
[1721051495423,0.04937022,62947.0,62945.0,0.158868]
[1721051495624,0.04837022,62946.0,62945.0,0.794342]
[1721051495865,0.04837022,62946.0,62945.0,0.797342]
[1721051496413,0.04837022,62946.0,62945.0,0.803342]
[1721051496605,0.04837022,62946.0,62945.0,0.800342]
[1721051496815,0.04751772,62951.0,62942.0,0.468615]
[1721051497149,0.04806317,62950.0,62949.0,0.158858]
[1721051497352,0.20691917,62950.0,62946.0,0.158865]
[1721051497498,0.04751772,62951.0,62947.0,0.158861]
[1721051497499,0.04806317,62949.0,62947.0,0.158861]
[1721051497698,0.04751772,62951.0,62947.0,0.158861]
[1721051497699,0.04806317,62948.0,62947.0,0.158861]
[1721051498085,0.04806317,62950.0,62947.0,0.158861]
[1721051498291,0.04824014,62949.0,62945.0,0.007]
[1721051498508,0.477598,62946.0,62945.0,0.009]
[1721051498665,0.84357826,62946.0,62945.0,0.002]
[1721051498865,0.95034715,62946.0,62945.0,0.002]
[1721051499804,1.26807915,62946.0,62945.0,0.002]
[1721051500022,1.71381966,62946.0,62945.0,0.002]
[1721051500231,1.43205451,62943.0,62942.0,0.009163]
[1721051500399,1.98587104,62943.0,62942.0,0.009163]
[1721051500623,2.08587104,62943.0,62942.0,0.009163]
[1721051500767,2.24630499,62943.0,62942.0,0.009163]
[1721051500969,2.34630499,62943.0,62942.0,0.009163]
[1721051501318,2.3467432,62943.0,62942.0,0.009163]
[1721051501541,2.34675586,62943.0,62942.0,0.009163]
[1721051501839,2.26570348,62943.0,62942.0,0.009163]
[1721051502255,1.90516439,62943.0,62942.0,0.009163]
[1721051502659,2.06971399,62943.0,62942.0,0.009163]
[1721051502895,2.26971399,62943.0,62942.0,0.009163]
[1721051503123,2.10916439,62943.0,62942.0,0.009163]
[1721051503332,2.10897824,62943.0,62942.0,0.009163]
[1721051503590,2.10897824,62943.0,62942.0,0.013163]
[1721051504033,2.99704315,62943.0,62942.0,0.013163]
[1721051504268,2.35000851,62934.0,62933.0,0.009163]
[1721051504509,2.69880851,62934.0,62933.0,0.009163]
[1721051504723,2.77754667,62934.0,62933.0,0.009163]
[1721051505180,2.67754667,62934.0,62933.0,0.009163]
[1721051505324,1.71325367,62934.0,62933.0,0.009163]
[1721051505537,1.85594602,62934.0,62933.0,0.009163]
[1721051505741,1.71325367,62934.0,62933.0,0.009163]
[1721051506163,1.8679446,62934.0,62933.0,0.009163]
[1721051506562,2.3679446,62934.0,62933.0,0.009163]
[1721051506765,1.8679365,62934.0,62933.0,0.009163]
[1721051507616,1.8779365,62934.0,62933.0,0.009163]
[1721051507749,1.53217297,62934.0,62933.0,0.009163]
[1721051507953,1.50944038,62934.0,62933.0,0.009163]
[1721051508609,1.73524038,62934.0,62933.0,0.009163]
[1721051508820,1.87791348,62934.0,62933.0,0.009163]
[1721051509295,1.73524038,62934.0,62933.0,0.009163]
[1721051509667,2.15303338,62934.0,62933.0,0.009163]
[1721051510393,2.35303338,62934.0,62933.0,0.009163]
[1721051510636,2.15303338,62934.0,62933.0,0.009163]
[1721051510840,2.02080851,62934.0,62933.0,0.009163]
[1721051511015,2.15343584,62934.0,62933.0,0.009163]
[1721051511243,2.02080851,62934.0,62933.0,0.009163]
[1721051511442,2.15343047,62934.0,62933.0,0.009163]
[1721051511833,1.61569696,62934.0,62933.0,0.009163]
[1721051512034,1.59269696,62934.0,62933.0,0.009163]
[1721051512294,1.73532104,62934.0,62933.0,0.009163]
[1721051512432,1.59269696,62934.0,62933.0,0.009163]
[1721051513020,1.71263747,62934.0,62933.0,0.009163]
[1721051513198,1.59269696,62934.0,62933.0,0.009163]
[1721051513342,1.61569696,62934.0,62933.0,0.009163]
[1721051513952,0.97210396,62934.0,62933.0,0.009163]
[1721051514154,1.09093033,62934.0,62933.0,0.009163]
[1721051514354,1.41784447,62934.0,62933.0,0.009163]
[1721051514550,1.74481147,62934.0,62933.0,0.009163]
[1721051514959,1.73281147,62934.0,62933.0,0.009163]
[1721051515181,1.87543555,62934.0,62933.0,0.009163]
[1721051515381,2.06260447,62934.0,62933.0,0.009163]
[1721051515624,1.96763555,62934.0,62933.0,0.009163]
[1721051515986,1.95763555,62934.0,62933.0,0.009163]
[1721051516173,1.96063555,62934.0,62933.0,0.009163]
[1721051516375,1.81801147,62934.0,62933.0,0.009163]
[1721051516573,2.12380447,62934.0,62933.0,0.009163]
[1721051516782,2.48250447,62934.0,62933.0,0.009163]
[1721051517018,2.49950447,62934.0,62933.0,0.009163]
[1721051517239,2.50042127,62934.0,62933.0,0.009163]
[1721051517782,2.48342127,62934.0,62933.0,0.009163]
[1721051517997,2.49442127,62934.0,62933.0,0.009163]
[1721051518130,2.50742127,62934.0,62933.0,0.009163]
[1721051518331,2.49442127,62934.0,62933.0,0.009163]
[1721051518606,2.50642127,62934.0,62933.0,0.009163]
[1721051519300,2.59818637,62934.0,62933.0,0.009163]
[1721051519700,2.60818637,62934.0,62933.0,0.009163]
[1721051519909,3.0863937,62934.0,62933.0,0.009163]
[1721051520075,3.00818637,62934.0,62933.0,0.009163]
[1721051520474,3.0075881,62934.0,62933.0,0.009163]
[1721051520674,3.1075881,62934.0,62933.0,0.009163]
[1721051521094,3.58573641,62934.0,62933.0,0.009163]
[1721051521310,3.26794341,62934.0,62933.0,0.009163]
[1721051521513,3.1075881,62934.0,62933.0,0.009163]
[1721051521891,3.2679172,62934.0,62933.0,0.009163]
[1721051522112,3.0075881,62934.0,62933.0,0.009163]
[1721051522317,3.1075881,62934.0,62933.0,0.009163]
[1721051522723,1.90603011,62934.0,62933.0,0.009163]
[1721051522873,1.99059705,62934.0,62933.0,0.009163]
[1721051523080,2.59184384,62934.0,62933.0,0.009163]
[1721051523300,2.90963684,62934.0,62933.0,0.009163]
[1721051523705,2.40963684,62934.0,62933.0,0.009163]
[1721051524128,2.60963684,62934.0,62933.0,0.009163]
[1721051524593,2.40963684,62934.0,62933.0,0.009163]
[1721051524829,0.96341033,62934.0,62933.0,0.009163]
[1721051525844,1.2833634,62934.0,62933.0,0.009163]
[1721051526330,1.3063634,62934.0,62933.0,0.009163]
[1721051526859,2.60969691,62934.0,62933.0,0.009163]
[1721051527076,3.00969691,62934.0,62933.0,0.009163]
[1721051528037,2.80969691,62934.0,62933.0,0.009163]
[1721051528250,2.73319691,62934.0,62933.0,0.009163]
[1721051528489,1.6091634,62934.0,62933.0,0.009163]
[1721051528670,1.52583822,62934.0,62933.0,0.009163]
[1721051528820,1.3833634,62934.0,62933.0,0.009163]
[1721051529025,1.50259306,62934.0,62933.0,0.009163]
[1721051529225,1.97086064,62934.0,62933.0,0.009163]
[1721051529426,2.22368606,62934.0,62933.0,0.009163]
[1721051530242,2.42368606,62934.0,62933.0,0.009163]
[1721051530462,2.44668606,62934.0,62933.0,0.009163]
[1721051531545,2.82687906,62934.0,62933.0,0.009163]
[1721051531727,2.95916031,62934.0,62933.0,0.009163]
[1721051532127,2.98771487,62934.0,62933.0,0.009163]
[1721051532393,2.50962006,62934.0,62933.0,0.009163]
[1721051533016,2.82741306,62934.0,62933.0,0.009163]
[1721051533353,2.98771487,62934.0,62933.0,0.009163]
[1721051533665,3.08771487,62934.0,62933.0,0.009163]
[1721051533876,3.08953097,62934.0,62933.0,0.009163]
[1721051534080,3.08953097,62934.0,62922.0,0.009163]
[1721051534081,2.76807651,62924.0,62922.0,0.009163]
[1721051534290,3.20784896,62924.0,62922.0,0.009163]
[1721051534490,3.39724896,62924.0,62922.0,0.009163]
[1721051534734,3.55755382,62924.0,62922.0,0.009163]
[1721051535314,3.5580511,62924.0,62922.0,0.009163]
[1721051535521,3.40477083,62924.0,62922.0,0.009163]
[1721051535723,3.40476109,62924.0,62922.0,0.009163]
[1721051536122,2.70991809,62924.0,62922.0,0.009163]
[1721051536320,2.64351809,62924.0,62922.0,0.009163]
[1721051536504,2.64951809,62924.0,62922.0,0.009163]
[1721051536905,2.64351809,62924.0,62922.0,0.009163]
[1721051537107,3.26136109,62924.0,62922.0,0.009163]
[1721051537310,2.95542058,62924.0,62922.0,0.009163]
[1721051537561,3.27536109,62924.0,62922.0,0.009163]
[1721051537928,3.25436109,62924.0,62922.0,0.009163]
[1721051538132,3.28236109,62924.0,62922.0,0.009163]
[1721051538505,3.2824707,62924.0,62922.0,0.009163]
[1721051539596,3.27123681,62924.0,62922.0,0.009163]
[1721051539925,3.28523681,62924.0,62922.0,0.009163]
[1721051540056,2.26739381,62924.0,62922.0,0.009163]
[1721051540663,1.72655081,62924.0,62922.0,0.009163]
[1721051540957,0.96020119,62924.0,62922.0,0.009163]
[1721051541160,0.23681776,62924.0,62922.0,0.009163]
[1721051541402,0.186921,62924.0,62923.0,0.092163]
[1721051541599,0.37153049,62924.0,62923.0,0.092163]
[1721051541863,0.32403588,62924.0,62923.0,0.092163]
[1721051542266,0.64187888,62924.0,62923.0,0.092163]
[1721051542407,0.94572188,62924.0,62923.0,0.092163]
[1721051542612,1.3445541,62924.0,62923.0,0.009163]
[1721051542816,1.36853863,62924.0,62923.0,0.009163]
[1721051543020,1.71838163,62924.0,62923.0,0.009163]
[1721051543422,1.59044112,62924.0,62923.0,0.009163]
[1721051543627,1.27259812,62924.0,62923.0,0.009163]
[1721051543838,1.27559812,62924.0,62923.0,0.009163]
[1721051544448,1.27259812,62924.0,62923.0,0.009163]
[1721051544658,1.5352538,62924.0,62923.0,0.009163]
[1721051544856,1.53571783,62924.0,62923.0,0.009163]
[1721051545078,1.53471783,62924.0,62923.0,0.009163]
[1721051545279,1.39200266,62924.0,62923.0,0.009163]
[1721051545476,1.27406215,62924.0,62923.0,0.009163]
[1721051545680,0.95421915,62924.0,62923.0,0.009163]
[1721051545902,0.95921915,62924.0,62923.0,0.009163]
[1721051546112,0.96321915,62924.0,62923.0,0.009163]
[1721051546553,0.14061215,62924.0,62923.0,0.635135]
[1721051546775,0.05464385,62924.0,62923.0,1.072983]
[1721051546988,0.00083,62928.0,62927.0,1.05217]
[1721051548124,0.09724346,62936.0,62935.0,0.596682]
[1721051548125,0.00208429,62936.0,62935.0,0.596682]
[1721051548327,0.063681,62941.0,62935.0,0.596682]
[1721051548328,0.04757479,62943.0,62942.0,0.12]
[1721051548557,0.11894654,62948.0,62937.0,0.2]
[1721051548558,0.04757479,62950.0,62943.0,1.056167]
[1721051548758,0.07219636,62952.0,62943.0,1.373914]
[1721051548759,0.00083,62952.0,62943.0,1.373914]
[1721051548980,0.00083,62952.0,62951.0,0.73836]
[1721051549271,0.11894654,62967.0,62963.0,0.12]
[1721051549272,0.11123179,62964.0,62963.0,0.12]
[1721051549484,0.09515723,62967.0,62963.0,0.12]
[1721051549485,0.04757479,62967.0,62966.0,0.794077]
[1721051549697,0.14273585,62979.0,62966.0,0.794077]
[1721051549698,0.04757479,62974.0,62970.0,0.158805]
[1721051549904,0.20636779,62975.0,62970.0,0.158805]
[1721051550151,0.04757479,62975.0,62971.0,0.12]
[1721051550363,0.04757479,62975.0,62966.0,0.065]
[1721051550364,0.04757479,62980.0,62979.0,0.476349]
[1721051550564,0.77369947,62989.0,62982.0,0.158774]
[1721051550713,0.39721536,62991.0,62977.0,0.12]
[1721051550714,0.317526,62987.0,62977.0,0.12]
[1721051550915,0.00276522,62990.0,62977.0,0.12]
[1721051551096,0.00276522,62990.0,62984.0,0.158767]
[1721051551294,0.063634,62987.0,62982.0,0.158774]
[1721051551613,0.063634,62987.0,62979.0,0.317565]
[1721051551815,0.063634,62987.0,62979.0,0.158782]
[1721051551816,0.158769,62985.0,62979.0,0.158782]
[1721051552016,0.222398,62987.0,62979.0,0.158782]
[1721051552217,0.158765,62986.0,62979.0,0.158782]
[1721051552424,0.002,62975.0,62973.0,0.0632]
[1721051552792,0.002,62975.0,62974.0,0.278795]
[1721051553011,0.158774,62983.0,62977.0,0.158787]
[1721051553211,0.158774,62983.0,62979.0,0.003]
[1721051553583,0.317548,62983.0,62979.0,0.003]
[1721051553786,0.317538,62985.0,62975.0,0.12]
[1721051553935,0.158773,62983.0,62977.0,0.158786]
[1721051554558,0.023,62984.0,62976.0,0.437578]
[1721051554715,0.023,62984.0,62976.0,0.12]
[1721051554942,0.023,62984.0,62980.0,0.15878]
[1721051555314,0.063634,62987.0,62979.0,0.317562]
[1721051555532,0.00276522,62990.0,62982.0,0.12]
[1721051555735,0.00276522,62990.0,62989.0,0.476272]
[1721051555941,0.00834,62991.0,62990.0,0.158755]
[1721051556434,0.00834,62991.0,62988.0,0.158759]
[1721051556623,0.00834,62991.0,62990.0,0.31751]
[1721051556832,0.00834,62991.0,62990.0,0.158755]
[1721051557160,0.01034,62991.0,62990.0,0.476265]
[1721051557363,0.01034,62991.0,62990.0,0.596265]
[1721051557564,0.00834,62991.0,62990.0,0.596265]
[1721051557988,0.00834,62991.0,62990.0,0.158755]
[1721051558228,0.00834,62991.0,62988.0,0.158759]
[1721051558550,0.00834,62991.0,62989.0,0.158757]
[1721051558776,0.00834,62991.0,62990.0,0.476265]
[1721051558976,0.00934,62991.0,62990.0,0.476265]
[1721051559174,0.00934,62991.0,62990.0,0.913775]
[1721051559401,0.00834,62991.0,62990.0,1.30122947]
[1721051559603,0.485597,62991.0,62990.0,0.0811]
[1721051559842,0.485597,62991.0,62990.0,0.239855]
[1721051559843,0.01034,62991.0,62990.0,0.239855]
[1721051560051,0.01034,62991.0,62990.0,0.0811]
[1721051560202,0.00934,62991.0,62990.0,0.0811]
[1721051560398,0.00834,62991.0,62990.0,0.0811]
[1721051560603,0.01134,62991.0,62990.0,0.0841]
[1721051560802,0.00934,62991.0,62990.0,0.0841]
[1721051561440,0.01034,62991.0,62990.0,0.0841]
[1721051561797,0.01034,62991.0,62990.0,0.680365]
[1721051562004,0.01034,62991.0,62990.0,0.997875]
[1721051562427,0.01034,62991.0,62990.0,1.377985]
[1721051562670,0.01034,62991.0,62990.0,1.477985]
[1721051562868,0.01034,62991.0,62990.0,1.357985]
[1721051563184,0.01034,62991.0,62990.0,1.477985]
[1721051564354,0.01034,62991.0,62990.0,1.160475]
[1721051564955,0.01034,62991.0,62990.0,1.477985]
[1721051565426,0.01034,62991.0,62990.0,1.160475]
[1721051566611,0.01034,62991.0,62990.0,1.477985]
[1721051569387,0.01034,62991.0,62990.0,1.160475]
[1721051570042,0.01034,62991.0,62990.0,0.161755]
[1721051571486,0.01034,62991.0,62990.0,0.479265]
[1721051571687,0.01034,62991.0,62990.0,0.599265]
[1721051572026,0.01034,62991.0,62990.0,0.916775]
[1721051572189,0.01034,62991.0,62990.0,1.116775]
[1721051572384,0.01034,62991.0,62990.0,1.45211939]
[1721051572999,0.01034,62991.0,62990.0,1.094575]
[1721051573398,0.01034,62991.0,62990.0,0.777065]
[1721051573601,0.01034,62991.0,62990.0,0.339555]
[1721051574314,0.01034,62991.0,62990.0,0.579265]
[1721051574508,0.01034,62991.0,62990.0,0.699265]
[1721051574650,0.01034,62991.0,62990.0,1.016775]
[1721051574874,0.01034,62991.0,62990.0,1.334285]
[1721051575250,0.01034,62991.0,62990.0,1.8192373]
[1721051575453,0.01034,62991.0,62990.0,1.6815373]
[1721051575657,0.01034,62991.0,62990.0,1.8815373]
[1721051575865,0.01034,62991.0,62990.0,1.6815373]
[1721051576199,0.01034,62991.0,62990.0,1.161875]
[1721051577767,0.01034,62991.0,62990.0,0.2481]
[1721051577977,0.01034,62991.0,62990.0,0.261755]
[1721051578209,0.01034,62991.0,62990.0,1.01994973]
[1721051578409,0.01034,62991.0,62990.0,1.06504378]
[1721051579396,0.01034,62991.0,62990.0,0.30684905]
[1721051579595,0.01034,62991.0,62990.0,0.261755]
[1721051580118,0.01034,62991.0,62990.0,0.579265]
[1721051580319,0.01034,62991.0,62990.0,0.699265]
[1721051580848,0.01034,62991.0,62990.0,0.579265]
[1721051581197,0.01034,62991.0,62990.0,0.003]
[1721051581198,0.316092,62991.0,62990.0,0.003]
[1721051581447,0.01034,62991.0,62990.0,0.003]
[1721051581671,1.144607,62991.0,62990.0,0.003]
[1721051582434,0.00934,62991.0,62988.0,0.12]
[1721051582636,0.00934,62991.0,62989.0,0.158756]
[1721051582863,0.01034,62991.0,62988.0,0.278759]
[1721051583038,0.01034,62991.0,62989.0,0.158757]
[1721051583438,0.00934,62991.0,62989.0,0.158757]
[1721051583839,0.00834,62991.0,62989.0,0.158757]
[1721051584185,0.01034,62991.0,62988.0,0.15876]
[1721051584325,0.01134,62991.0,62988.0,0.15876]
[1721051584530,0.00934,62991.0,62989.0,0.158757]
[1721051584993,0.01034,62991.0,62989.0,0.158757]
[1721051585166,0.00934,62991.0,62989.0,0.158757]
[1721051585384,0.00934,62991.0,62990.0,0.913775]
[1721051585764,0.00934,62991.0,62990.0,1.231285]
[1721051585938,0.00834,62991.0,62990.0,1.47637905]
[1721051586144,0.00834,62991.0,62990.0,1.73849696]
[1721051586145,0.00934,62991.0,62990.0,1.73849696]
[1721051586373,0.00934,62991.0,62990.0,1.92323627]
[1721051586485,0.00834,62991.0,62990.0,1.72323627]
[1721051586746,0.00834,62991.0,62990.0,1.92323627]
[1721051586951,0.00934,62991.0,62990.0,1.73223627]
[1721051587355,0.01034,62991.0,62990.0,1.93223627]
[1721051587777,0.00934,62991.0,62990.0,1.93223627]
[1721051587990,0.01034,62991.0,62990.0,1.73223627]
[1721051588191,0.01034,62991.0,62990.0,2.06411107]
[1721051588852,0.01034,62991.0,62990.0,1.86411107]
[1721051589775,0.01034,62991.0,62990.0,2.54922171]
[1721051589910,0.01034,62991.0,62990.0,2.64922171]
[1721051590262,0.01034,62991.0,62990.0,3.06673171]
[1721051590507,0.00834,63007.0,63004.0,1.99218]
[1721051590681,0.00834,63007.0,63004.0,2.80361335]
[1721051590888,0.00834,63007.0,63006.0,1.531005]
[1721051591102,0.00834,63007.0,63006.0,2.46602397]
[1721051591294,0.00834,63007.0,63006.0,2.51147898]
[1721051591720,0.00834,63007.0,63006.0,2.47083967]
[1721051592150,0.00834,63007.0,63006.0,2.42538466]
[1721051592755,0.00934,63007.0,63006.0,2.49008466]
[1721051592949,0.00934,63007.0,63006.0,2.65768466]
[1721051593158,7.9e-07,63007.0,63006.0,2.97511466]
[1721051593362,0.00833,63014.0,63013.0,2.115873]
[1721051593567,0.00833,63014.0,63013.0,2.64932266]
[1721051593791,0.00833,63014.0,63013.0,2.83488491]
[1721051593966,0.00833,63014.0,63013.0,2.96669228]
[1721051594231,0.00833,63014.0,63013.0,2.96669331]
[1721051594440,0.00833,63014.0,63013.0,1.3576658]
[1721051594647,0.00833,63014.0,63013.0,1.013485]
[1721051594854,0.00833,63014.0,63013.0,1.18960291]
[1721051595053,0.00833,63014.0,63013.0,1.70699691]
[1721051595262,0.00833,63014.0,63013.0,1.50699691]
[1721051596192,0.00833,63014.0,63013.0,1.52099691]
[1721051596388,0.00933,63014.0,63013.0,1.52099691]
[1721051596616,0.00933,63014.0,63013.0,2.03839091]
[1721051596999,0.00933,63014.0,63013.0,1.72099691]
[1721051597354,0.00933,63014.0,63013.0,1.52099691]
[1721051597919,0.00933,63014.0,63013.0,2.03839091]
[1721051598118,0.00933,63014.0,63013.0,2.44809091]
[1721051598330,0.00933,63014.0,63013.0,2.54809091]
[1721051600156,0.00933,63014.0,63013.0,1.66309691]
[1721051600387,0.00933,63014.0,63013.0,1.52099691]
[1721051601544,0.00933,63014.0,63013.0,1.62099691]
[1721051601767,0.00933,63014.0,63013.0,1.52099691]
[1721051601930,0.00933,63014.0,63013.0,1.62099691]
[1721051602521,0.00933,63014.0,63013.0,1.52099691]
[1721051602725,0.00933,63014.0,63013.0,0.028]
[1721051603120,0.00933,63014.0,63013.0,0.624091]
[1721051603317,0.00933,63014.0,63013.0,1.42099691]
[1721051603716,0.00833,63014.0,63013.0,1.40699691]
[1721051604137,0.00933,63014.0,63013.0,1.41899691]
[1721051604336,0.00933,63014.0,63013.0,0.919485]
[1721051604539,0.00933,63014.0,63013.0,0.905485]
[1721051604738,0.00933,63014.0,63013.0,0.916485]
[1721051605073,0.00933,63014.0,63013.0,1.025485]
[1721051605290,0.00933,63014.0,63013.0,1.342879]
[1721051605417,0.00933,63014.0,63013.0,1.356879]
[1721051605632,0.00833,63014.0,63013.0,1.330879]
[1721051605831,0.00833,63014.0,63013.0,2.01039091]
[1721051606053,0.00833,63014.0,63013.0,2.11849091]
[1721051606054,0.00933,63014.0,63013.0,2.11849091]
[1721051606255,0.00933,63014.0,63013.0,2.48609091]
[1721051606457,0.00933,63014.0,63013.0,2.55019091]
[1721051606657,0.00933,63014.0,63013.0,2.53619091]
[1721051608120,0.00933,63014.0,63013.0,2.55019091]
[1721051608337,0.00933,63014.0,63013.0,2.53619091]
[1721051608645,0.00933,63014.0,63013.0,2.55019091]
[1721051610661,0.00933,63014.0,63013.0,2.86758491]
[1721051612812,0.00933,63014.0,63013.0,2.55019091]
[1721051613937,0.00933,63014.0,63013.0,1.83839091]
[1721051614075,0.00933,63014.0,63013.0,0.821485]
[1721051614478,0.00933,63014.0,63013.0,0.028]
[1721051614685,0.633113,63014.0,63013.0,0.028]
[1721051614886,1.31487572,63014.0,63013.0,0.028]
[1721051615707,1.31552797,63014.0,63013.0,0.028]
[1721051615912,0.793522,63010.0,63009.0,0.000913]
[1721051616113,1.27146797,63010.0,63009.0,0.000913]
[1721051616520,1.61187697,63010.0,63009.0,0.000913]
[1721051616721,1.67294579,63010.0,63009.0,0.000913]
[1721051616975,1.29446797,63010.0,63009.0,0.000913]
[1721051617177,0.95405897,63010.0,63009.0,0.000913]
[1721051618148,0.63664997,63010.0,63009.0,0.000913]
[1721051618685,0.612013,63010.0,63009.0,0.000913]
[1721051618907,0.6368235,63010.0,63009.0,0.000913]
[1721051619135,0.64282538,63010.0,63009.0,0.000913]
[1721051619548,0.96023438,63010.0,63009.0,0.000913]
[1721051619753,0.95423438,63010.0,63009.0,0.000913]
[1721051619953,1.41458389,63010.0,63009.0,0.000913]
[1721051620106,0.97723438,63010.0,63009.0,0.003913]
[1721051620310,1.29464338,63010.0,63009.0,0.005913]
[1721051620718,1.29464338,63010.0,63009.0,0.002913]
[1721051621444,1.41458389,63010.0,63009.0,0.002913]
[1721051621655,1.29464338,63010.0,63009.0,0.002913]
[1721051621864,1.29466799,63010.0,63009.0,0.002913]
[1721051622006,1.29466799,63010.0,63009.0,0.000913]
[1721051622412,1.29466799,63010.0,63009.0,0.001913]
[1721051622413,1.4206085,63010.0,63009.0,0.001913]
[1721051622620,1.4206085,63010.0,63009.0,0.000913]
[1721051622621,1.29466799,63010.0,63009.0,0.000913]
[1721051623044,1.30066799,63010.0,63009.0,0.001913]
[1721051623249,1.30366799,63010.0,63009.0,0.001913]
[1721051623492,1.278831,63010.0,63009.0,0.001913]
[1721051623697,1.30371411,63010.0,63009.0,0.001913]
[1721051623901,1.30071411,63010.0,63009.0,0.001913]
[1721051624342,1.30671411,63010.0,63009.0,0.001913]
[1721051624730,0.96030511,63010.0,63009.0,0.001913]
[1721051625137,0.9573061,63010.0,63009.0,0.000913]
[1721051625336,0.9613061,63010.0,63009.0,0.000913]
[1721051626540,0.9583061,63010.0,63009.0,0.000913]
[1721051626747,0.9603061,63010.0,63009.0,0.000913]
[1721051626963,0.9643061,63010.0,63009.0,0.000913]
[1721051627365,0.9583061,63010.0,63009.0,0.000913]
[1721051627836,0.9613061,63010.0,63009.0,0.000913]
[1721051628243,0.936422,63010.0,63009.0,0.000913]